bitfinex/quotes_ETHUSD_20241019
["timestamp","ask_amount","ask_price","bid_price","bid_amount"]
[1729314197527,4.17528517,2644.4,2644.0,3.78214]
[1729314197861,4.17528517,2644.4,2644.1,0.38577823]
[1729314198194,4.17528517,2644.4,2643.9,3.85792227]
[1729314199101,4.17528517,2644.4,2643.9,3.78228]
[1729314203259,0.39370517,2644.4,2643.9,3.78221]
[1729314203455,0.39370517,2644.4,2644.1,0.8255]
[1729314203819,4.5526,2644.5,2644.1,4.60749]
[1729314204039,1.16476667,2644.5,2644.2,0.4683126]
[1729314205421,0.39366667,2644.5,2644.2,0.4683126]
[1729314205619,4.17510667,2644.5,2644.2,0.4683126]
[1729314210374,4.17510667,2644.5,2644.1,4.60749]
[1729314216805,0.39366667,2644.5,2644.1,4.60749]
[1729314218979,0.39366667,2644.5,2644.1,3.849635]
[1729314221786,0.39366667,2644.5,2644.1,3.849565]
[1729314221984,4.17510667,2644.5,2644.1,3.849565]
[1729314222886,0.39366667,2644.5,2644.1,7.631495]
[1729314223311,0.39366667,2644.5,2644.2,3.78183]
[1729314223512,0.39366667,2644.5,2644.1,3.849565]
[1729314224430,0.39366667,2644.5,2644.2,0.07563007]
[1729314224734,3.78,2644.6,2644.3,4.60213]
[1729314230536,3.78,2644.6,2644.1,3.78192]
[1729314230730,8.36751,2644.6,2644.1,8.38434]
[1729314231105,8.36751,2644.6,2644.2,3.78183]
[1729314231300,4.5862,2644.6,2644.2,3.78183]
[1729314233335,4.5862,2644.6,2644.2,4.620255]
[1729314234925,3.78,2644.6,2644.2,4.620255]
[1729314235628,3.78,2644.6,2644.3,3.78163]
[1729314235835,3.78,2644.6,2644.4,0.7875]
[1729314242344,3.78,2644.6,2644.2,4.620275]
[1729314242549,7.56134,2644.6,2644.2,4.56934]
[1729314246433,0.7978,2644.5,2644.0,3.78204]
[1729314246762,4.57924,2644.5,2644.0,3.78204]
[1729314249960,4.57924,2644.5,2644.0,7.56411]
[1729314250659,4.57924,2644.5,2644.0,3.78204]
[1729314251037,0.7978,2644.5,2644.1,3.78197]
[1729314254680,0.7978,2644.5,2644.1,3.85759996]
[1729314256592,0.7978,2644.5,2644.1,3.78197]
[1729314257567,4.57924,2644.5,2643.9,4.5697]
[1729314257770,4.57924,2644.5,2644.1,3.78199]
[1729314259606,0.7978,2644.5,2644.1,3.78199]
[1729314262008,0.7978,2644.5,2644.1,3.78193]
[1729314262302,0.7978,2644.5,2644.2,3.78177]
[1729314262467,0.7978,2644.5,2644.2,3.78186]
[1729314264520,3.78,2644.6,2644.2,5.37830202]
[1729314264669,3.78,2644.6,2644.4,3.78154]
[1729314265307,3.78,2644.6,2644.3,3.85721025]
[1729314265474,3.78,2644.6,2644.5,3.78143]
[1729314266401,3.78,2644.6,2644.5,4.61393]
[1729314266711,0.7544,2644.9,2644.6,3.78119]
[1729314267418,0.7544,2645.1,2644.7,3.78107]
[1729314267616,0.7544,2645.1,2644.8,3.781]
[1729314268116,0.7544,2645.1,2644.7,3.78107]
[1729314270815,4.53499,2645.1,2644.6,3.78127]
[1729314271115,3.78059,2645.1,2644.7,0.90811414]
[1729314272397,3.78059,2645.1,2644.7,0.8325]
[1729314276027,4.37222665,2645.1,2644.7,0.8325]
[1729314278528,0.59163665,2645.1,2644.7,4.61359]
[1729314278836,0.59163665,2645.1,2644.7,4.68920438]
[1729314279900,0.59163665,2645.1,2644.7,4.61359]
[1729314281628,0.59163665,2645.1,2644.8,3.78093]
[1729314281941,0.59163665,2645.1,2644.8,7.56185]
[1729314282116,0.59163665,2645.1,2644.8,3.78092]
[1729314287347,0.59163665,2645.1,2644.9,3.78085]
[1729314288231,0.59163665,2645.1,2644.9,4.620298]
[1729314288547,0.59163665,2645.1,2645.0,3.78071]
[1729314289746,0.59163665,2645.1,2644.9,8.401088]
[1729314289951,0.59163665,2645.1,2644.9,4.620238]
[1729314290848,0.59163665,2645.1,2644.9,8.401018]
[1729314291189,0.59163665,2645.1,2644.9,4.620228]
[1729314291874,0.59163665,2645.1,2645.0,4.2427328]
[1729314292080,0.59163665,2645.1,2645.0,5.0120328]
[1729314292236,4.5389,2645.5,2645.1,3.78044]
[1729314292436,4.5389,2645.5,2645.2,3.78042]
[1729314292741,5.13044011,2645.5,2645.2,4.65966528]
[1729314294177,5.13044011,2645.5,2645.2,0.87924528]
[1729314297771,5.13044011,2645.5,2645.2,4.65964528]
[1729314298084,5.13044011,2645.5,2645.2,0.87924528]
[1729314298785,5.13044011,2645.5,2645.2,4.65964528]
[1729314300785,4.37154011,2645.5,2645.3,0.84401153]
[1729314301345,4.37154011,2645.5,2645.3,4.62429153]
[1729314303683,4.37154011,2645.5,2645.3,0.84401153]
[1729314306386,4.37154011,2645.5,2645.3,4.62428153]
[1729314310675,0.59154011,2645.5,2645.4,4.24256815]
[1729314313295,0.01891526,2645.8,2645.6,3.77976]
[1729314313618,0.59145397,2645.8,2645.6,7.55948]
[1729314313796,0.59145397,2645.8,2645.7,0.755948]
[1729314313980,0.7657,2646.0,2645.7,0.755948]
[1729314314321,0.7657,2646.0,2645.6,4.60492]
[1729314314477,0.7657,2646.0,2645.7,3.77963]
[1729314314676,0.7657,2646.0,2645.6,0.8252]
[1729314314880,0.7657,2646.0,2645.6,4.60505]
[1729314315621,0.7657,2646.0,2645.7,0.07558708]
[1729314316795,0.7657,2646.2,2645.7,3.85525708]
[1729314316997,4.54473,2646.2,2645.7,3.85525708]
[1729314317209,3.77915,2646.1,2645.7,0.07558708]
[1729314318084,3.77915,2646.1,2645.6,4.60498]
[1729314318621,3.77915,2646.1,2645.6,8.38476]
[1729314318996,3.77915,2646.1,2645.7,0.07558408]
[1729314319498,4.5447,2646.2,2645.7,3.85527408]
[1729314319913,4.5447,2646.2,2645.7,3.77969]
[1729314323003,4.5447,2646.2,2645.8,0.7889]
[1729314323304,4.5447,2646.2,2645.9,0.07558054]
[1729314323518,4.5447,2646.2,2645.8,0.7889]
[1729314323830,4.5447,2646.2,2645.9,0.53243956]
[1729314325194,4.5447,2646.2,2645.9,0.456859]
[1729314325415,3.779,2646.2,2645.9,0.456859]
[1729314325798,3.779,2646.2,2645.9,0.53243963]
[1729314326009,3.779,2646.2,2645.9,0.456859]
[1729314326297,3.779,2646.2,2645.9,0.53243965]
[1729314326522,3.779,2646.2,2645.9,0.456859]
[1729314326916,3.779,2646.2,2645.8,0.7889]
[1729314327711,4.17301658,2646.3,2645.9,0.0755807]
[1729314328896,4.17301658,2646.3,2645.9,0.07558068]
[1729314329098,3.77887,2646.3,2645.9,0.07558068]
[1729314329297,8.36754,2646.4,2645.9,3.77942]
[1729314329536,8.36754,2646.4,2646.0,0.456832]
[1729314331095,3.77892,2646.3,2646.0,0.456832]
[1729314332658,3.77892,2646.3,2645.8,4.5684]
[1729314332853,8.36755,2646.4,2645.9,3.77941]
[1729314333157,3.77888,2646.3,2645.9,3.77941]
[1729314333826,3.77888,2646.3,2645.8,0.7889]
[1729314334016,3.77888,2646.3,2645.8,4.56837]
[1729314334219,0.81,2646.4,2645.8,0.7889]
[1729314334433,4.53873,2646.1,2645.6,4.56958]
[1729314334643,4.53873,2646.1,2645.6,0.7898]
[1729314335026,4.53873,2646.1,2645.6,4.56965]
[1729314336217,4.53873,2646.1,2645.6,0.7898]
[1729314337245,4.53873,2646.1,2645.6,4.56964]
[1729314339573,4.53836,2646.3,2645.9,0.7898]
[1729314340858,8.31734,2646.3,2645.9,0.7898]
[1729314341169,4.53836,2646.3,2645.8,3.77956]
[1729314341465,8.3173,2646.3,2645.8,3.77956]
[1729314341974,4.53836,2646.3,2645.8,3.77956]
[1729314342475,8.31734,2646.3,2645.8,3.77956]
[1729314342834,3.77914,2646.1,2645.7,4.56951]
[1729314343340,3.77914,2646.1,2645.7,0.7898]
[1729314345428,5.78750907,2646.3,2645.5,0.7898]
[1729314345429,4.53881,2646.0,2645.5,0.7898]
[1729314345735,4.233371,2645.9,2645.5,0.7898]
[1729314345970,3.77949,2645.9,2645.5,0.7898]
[1729314347050,3.7796,2645.8,2645.3,4.56998]
[1729314347896,3.7796,2645.8,2645.3,8.35018]
[1729314348079,3.7796,2645.8,2645.3,4.56998]
[1729314348315,3.77986,2645.6,2645.3,0.7898]
[1729314348596,0.7595,2645.7,2645.1,4.57029]
[1729314348926,4.53922,2645.7,2645.2,3.78042]
[1729314349197,0.7595,2645.7,2645.2,3.78042]
[1729314349406,0.7595,2645.7,2645.3,3.78024]
[1729314354204,4.53922,2645.7,2645.3,3.78024]
[1729314354400,4.53922,2645.7,2645.2,3.78043]
[1729314359584,3.77972,2645.7,2645.4,0.8132]
[1729314364746,0.39434386,2645.8,2645.7,3.77971]
[1729314364895,4.52942,2646.3,2645.7,4.60809433]
[1729314364896,0.7505,2646.3,2645.7,4.60809433]
[1729314365100,0.7505,2646.3,2645.8,3.77957]
[1729314365338,4.52943,2646.3,2645.7,4.53251]
[1729314365507,4.52943,2646.3,2645.8,3.77957]
[1729314368494,0.7505,2646.3,2645.9,3.77932]
[1729314368940,0.7505,2646.3,2646.0,3.77921]
[1729314372418,0.7505,2646.3,2646.1,3.77907]
[1729314373848,4.5506,2646.5,2646.1,3.77907]
[1729314376310,5.14196557,2646.5,2646.1,3.77907]
[1729314386047,8.92053557,2646.5,2646.0,4.55829]
[1729314386849,8.92053557,2646.5,2646.1,3.77912]
[1729314391326,5.14196557,2646.5,2646.1,3.77912]
[1729314393041,8.92053557,2646.5,2646.1,3.77912]
[1729314414116,8.92053557,2646.5,2646.0,4.55832]
[1729314414453,8.92053557,2646.5,2646.0,8.33754]
[1729314414604,12.69924557,2646.5,2646.0,4.55832]
[1729314414950,8.92053557,2646.5,2646.0,4.55832]
[1729314415743,3.77873,2646.4,2646.0,4.55832]
[1729314416052,8.92054557,2646.5,2646.0,4.55832]
[1729314417541,5.14196557,2646.5,2646.0,4.55832]
[1729314417710,8.92056557,2646.5,2646.0,4.55832]
[1729314418033,8.92056557,2646.5,2646.0,4.55831]
[1729314419219,3.77878,2646.4,2646.0,0.7791]
[1729314420300,8.92056557,2646.5,2646.0,4.55836]
[1729314420537,12.69923557,2646.5,2646.0,4.55836]
[1729314420739,3.7788,2646.4,2646.0,0.7791]
[1729314420946,3.7788,2646.4,2646.0,4.55837]
[1729314422542,3.7788,2646.4,2646.0,0.7791]
[1729314422745,8.92054557,2646.5,2646.0,4.55834]
[1729314424272,8.92055557,2646.5,2646.0,0.7791]
[1729314424499,8.92055557,2646.5,2646.0,4.55838]
[1729314432172,5.14196557,2646.5,2646.1,3.77906]
[1729314432377,8.92053557,2646.5,2646.1,3.77906]
[1729314437595,8.92053557,2646.5,2646.0,4.55837]
[1729314445211,3.77875,2646.4,2646.0,0.7791]
[1729314445417,3.77875,2646.4,2646.0,4.55838]
[1729314457097,4.37136557,2646.5,2646.2,0.7838]
[1729314457302,8.14994557,2646.5,2646.2,0.7838]
[1729314457920,8.14994557,2646.5,2645.7,1.18994551]
[1729314457921,4.37136557,2646.5,2646.4,3.77871]
[1729314458200,0.7897,2647.1,2645.6,1.58659401]
[1729314458201,4.56714,2647.3,2646.8,3.77805]
[1729314458435,4.56714,2647.3,2646.8,4.56185]
[1729314458599,1.246414,2647.3,2646.8,0.7838]
[1729314458799,5.023844,2647.3,2646.8,0.7838]
[1729314459026,1.246414,2647.3,2646.8,4.56192]
[1729314459251,0.7897,2647.3,2646.8,4.56192]
[1729314459540,3.78,2647.5,2646.9,4.56169]
[1729314459748,3.77737,2647.4,2646.9,4.56169]
[1729314460523,3.77737,2647.4,2646.9,0.7838]
[1729314460736,3.77729,2647.4,2646.9,0.7838]
[1729314461140,8.72756258,2647.4,2646.9,0.7838]
[1729314462050,3.77744,2647.3,2646.9,0.7838]
[1729314463852,3.77765,2647.2,2646.7,4.56199]
[1729314464009,3.77744,2647.3,2646.8,3.77814]
[1729314465240,3.77744,2647.3,2646.9,0.8277]
[1729314467642,3.77744,2647.3,2646.9,4.60566]
[1729314467850,3.77744,2647.3,2646.9,5.44404]
[1729314470177,3.77744,2647.3,2646.9,0.8277]
[1729314470532,3.77744,2647.3,2646.9,4.60569]
[1729314471638,3.77744,2647.3,2646.9,0.8277]
[1729314474269,3.7773,2647.4,2646.9,4.60569]
[1729314477674,7.55725,2647.5,2647.0,0.7806]
[1729314477977,3.77735,2647.4,2647.0,0.7806]
[1729314481377,7.55727,2647.5,2647.0,4.55836]
[1729314481689,3.77731,2647.4,2647.0,0.7806]
[1729314482276,7.55725,2647.5,2647.0,4.55841]
[1729314482440,3.78,2647.5,2647.1,3.77764]
[1729314483152,3.78,2647.5,2647.2,4.55816]
[1729314483488,3.78,2647.5,2647.4,0.7806]
[1729314487066,3.78,2647.5,2647.2,0.7576]
[1729314491063,3.78,2647.5,2647.2,4.53516]
[1729314491250,3.78,2647.5,2647.2,5.366444]
[1729314494138,3.78,2647.5,2647.2,1.588884]
[1729314494315,7.55716,2647.5,2647.2,1.588884]
[1729314494720,3.78,2647.5,2647.2,1.588884]
[1729314504327,3.78,2647.5,2647.2,5.366434]
[1729314505472,3.78,2647.5,2647.2,4.53515]
[1729314511568,3.78,2647.5,2647.2,0.7576]
[1729314515258,7.55714,2647.5,2647.0,3.77775]
[1729314516077,7.55714,2647.5,2647.1,3.77771]
[1729314516271,3.78,2647.5,2647.1,3.77771]
[1729314516479,3.78,2647.5,2647.1,4.608626]
[1729314518878,0.7546,2647.4,2647.1,4.608626]
[1729314519859,1.34567823,2647.4,2647.1,4.608626]
[1729314526001,1.34567823,2647.4,2646.9,0.7537]
[1729314526169,5.12303823,2647.4,2646.9,4.53162]
[1729314526507,8.90046823,2647.4,2646.9,3.77792]
[1729314526671,5.12303823,2647.4,2646.9,3.77792]
[1729314528469,0.7546,2647.0,2646.4,5.72227551]
[1729314528685,0.7546,2647.0,2646.3,1.58659401]
[1729314528686,0.7546,2646.8,2646.3,3.77876]
[1729314528861,0.7546,2646.8,2646.2,4.53259]
[1729314529069,4.53285,2646.8,2646.1,3.77907]
[1729314529268,8.31111,2646.8,2646.2,3.77891]
[1729314529503,4.609361,2646.8,2646.1,3.77912]
[1729314529706,4.53297,2646.7,2646.1,3.77906]
[1729314529909,3.77843,2646.6,2646.1,3.77906]
[1729314531110,3.77843,2646.6,2646.1,3.77905]
[1729314533215,3.77843,2646.6,2646.1,7.55811]
[1729314533675,4.53289,2646.7,2646.2,3.77899]
[1729314533871,4.53289,2646.7,2646.1,3.77905]
[1729314534910,3.77843,2646.6,2646.1,3.77905]
[1729314537017,3.77843,2646.6,2646.1,7.55812]
[1729314537644,0.7546,2646.7,2646.2,3.77899]
[1729314537645,4.53289,2646.7,2646.2,3.77899]
[1729314537828,4.53292,2646.7,2646.2,3.77899]
[1729314538143,4.53292,2646.7,2646.2,3.779]
[1729314538345,4.53292,2646.7,2646.1,3.85462469]
[1729314538346,4.53292,2646.7,2646.3,3.77884]
[1729314538515,0.7546,2646.7,2646.3,3.77884]
[1729314540813,4.53292,2646.7,2646.3,3.77884]
[1729314542342,4.53292,2646.7,2646.1,7.63365469]
[1729314542550,4.53292,2646.7,2646.1,8.47239016]
[1729314542764,4.53292,2646.7,2646.1,8.39681547]
[1729314543648,4.53292,2646.7,2646.2,3.77898]
[1729314543871,4.59867,2647.0,2646.5,3.77849]
[1729314544023,6.183319,2647.0,2646.5,3.77849]
[1729314544224,4.59867,2647.0,2646.4,8.32992]
[1729314544775,4.59867,2647.0,2646.5,3.77856]
[1729314545156,3.77801,2646.9,2646.4,0.7726]
[1729314545343,7.55614,2646.9,2646.3,3.77879]
[1729314545526,7.55614,2646.9,2646.4,0.833029]
[1729314545844,3.77801,2646.9,2646.4,8.390239]
[1729314546168,3.77801,2646.9,2646.4,4.611619]
[1729314546573,3.77801,2646.9,2646.4,8.390239]
[1729314546873,3.77801,2646.9,2646.4,4.611619]
[1729314547255,3.77801,2646.9,2646.3,3.77882]
[1729314547256,0.8208,2646.8,2646.3,3.77882]
[1729314547450,0.8208,2646.7,2646.3,3.77882]
[1729314548152,0.8208,2646.7,2646.2,3.77892]
[1729314549663,3.77843,2646.6,2646.2,3.77892]
[1729314549823,0.8208,2646.5,2646.2,3.77892]
[1729314550023,0.8208,2646.5,2646.2,0.83307]
[1729314552031,0.8208,2646.5,2646.2,0.83174997]
[1729314552231,0.8208,2646.5,2646.2,3.77899]
[1729314555463,0.8208,2646.5,2646.2,7.55791]
[1729314555670,0.8208,2646.5,2646.2,3.77892]
[1729314558896,0.8208,2646.5,2646.2,7.55785]
[1729314559228,0.8208,2646.5,2646.2,3.77892]
[1729314559383,0.8208,2646.5,2646.2,7.55784]
[1729314559920,0.8208,2646.5,2646.2,3.77892]
[1729314560610,0.8208,2646.5,2646.2,7.55785]
[1729314560817,0.8208,2646.5,2646.2,3.77892]
[1729314561528,0.8208,2646.5,2646.2,7.55785]
[1729314562413,0.8208,2646.5,2646.3,3.77883]
[1729314563524,0.8208,2646.5,2646.3,3.77886]
[1729314563827,4.56646,2646.8,2646.3,3.77886]
[1729314571030,0.7883,2646.8,2646.4,3.77862]
[1729314571188,0.7883,2646.8,2646.4,3.7786]
[1729314571592,0.7883,2646.8,2646.5,3.77856]
[1729314574297,7.55565,2647.1,2646.5,3.77856]
[1729314574503,0.7842,2647.0,2646.5,3.77856]
[1729314574817,4.56206,2647.0,2646.5,3.77857]
[1729314576467,8.34005,2647.0,2646.5,3.77857]
[1729314578126,3.77801,2646.9,2646.5,3.77857]
[1729314578323,4.56206,2647.0,2646.5,4.238877]
[1729314578899,4.56206,2647.0,2646.5,3.77849]
[1729314580028,0.59123217,2646.9,2646.5,3.77849]
[1729314582012,0.59123217,2646.9,2646.3,0.8253]
[1729314582353,0.59123217,2646.9,2646.6,3.77842]
[1729314583748,0.7842,2646.8,2646.4,3.77871]
[1729314583916,0.7842,2646.8,2646.5,3.77856]
[1729314584117,0.59123217,2646.9,2646.5,3.77856]
[1729314585942,0.59123217,2646.9,2646.3,4.60415]
[1729314585943,0.7842,2646.8,2646.3,4.60415]
[1729314586127,4.56237,2646.8,2646.3,4.60415]
[1729314586546,4.56237,2646.8,2646.3,4.60408]
[1729314586731,4.56237,2646.8,2646.3,4.60407]
[1729314586914,4.56237,2646.8,2646.3,8.38285]
[1729314587654,4.56237,2646.8,2646.4,3.7787]
[1729314587862,0.7842,2646.8,2646.4,3.7787]
[1729314588215,0.7842,2646.8,2646.3,4.60407]
[1729314588216,4.56241,2646.8,2646.3,4.60407]
[1729314589758,4.56241,2646.8,2646.3,4.60406]
[1729314589923,4.56241,2646.8,2646.3,5.442369]
[1729314590331,4.36923217,2646.9,2646.5,3.77857]
[1729314590532,0.59123217,2646.9,2646.5,3.77848]
[1729314591058,0.59123217,2646.9,2646.5,0.9220849]
[1729314591263,0.59123217,2646.9,2646.7,3.7782]
[1729314595449,0.59123217,2646.9,2646.7,4.5719]
[1729314597360,0.59123217,2646.9,2646.8,3.77814]
[1729314601532,0.59123217,2646.9,2646.7,8.35024]
[1729314601843,0.59123217,2646.9,2646.7,9.185264]
[1729314602167,0.59123217,2646.9,2646.8,3.77814]
[1729314602330,0.59123217,2646.9,2646.7,5.406994]
[1729314602757,0.59123217,2646.9,2646.7,5.406934]
[1729314602956,0.59123217,2646.9,2646.8,3.77814]
[1729314603946,0.59123217,2646.9,2646.7,4.613234]
[1729314604983,0.59123217,2646.9,2646.7,3.77821]
[1729314605688,0.59123217,2646.9,2646.7,7.55643]
[1729314606061,0.59123217,2646.9,2646.7,3.77821]
[1729314606264,0.59123217,2646.9,2646.7,3.7782]
[1729314606663,0.59123217,2646.9,2646.7,7.5564]
[1729314607249,0.59123217,2646.9,2646.7,3.7782]
[1729314607551,0.59123217,2646.9,2646.7,7.55642]
[1729314608380,0.59123217,2646.9,2646.7,7.55641]
[1729314611005,0.59123217,2646.9,2646.8,3.77814]
[1729314611955,0.59123217,2646.9,2646.7,3.7782]
[1729314612157,0.59123217,2646.9,2646.8,3.77814]
[1729314613694,0.59123217,2646.9,2646.7,3.7782]
[1729314614064,0.59123217,2646.9,2646.7,7.55637]
[1729314614471,0.59123217,2646.9,2646.7,3.77817]
[1729314616257,0.59123217,2646.9,2646.7,7.55639]
[1729314617577,0.59123217,2646.9,2646.7,7.55634]
[1729314618412,0.59123217,2646.9,2646.7,3.77817]
[1729314621719,0.59123217,2646.9,2646.7,7.55638]
[1729314622016,0.59123217,2646.9,2646.7,3.77817]
[1729314623384,0.59123217,2646.9,2646.7,7.55638]
[1729314623783,0.59123217,2646.9,2646.7,3.77817]
[1729314625027,0.59123217,2646.9,2646.8,3.77814]
[1729314627734,0.59123217,2646.9,2646.6,3.7783]
[1729314628035,0.59123217,2646.9,2646.4,3.77862]
[1729314628202,0.8058,2646.8,2646.4,4.156572]
[1729314628402,0.8058,2646.8,2646.4,3.77871]
[1729314629641,0.8058,2646.8,2646.3,0.8026]
[1729314629836,0.8058,2646.8,2646.5,3.77849]
[1729314631418,0.8058,2646.8,2646.4,3.7787]
[1729314631619,4.58394,2646.8,2646.3,4.58134]
[1729314631843,4.58394,2646.8,2646.3,8.3601]
[1729314632064,4.58394,2646.8,2646.3,4.58134]
[1729314632349,4.58394,2646.8,2646.3,8.36013]
[1729314632934,4.58394,2646.8,2646.3,4.58134]
[1729314633140,0.8058,2646.8,2646.4,3.7787]
[1729314633762,3.7783,2646.7,2646.3,3.77874]
[1729314635669,3.7783,2646.7,2646.2,3.77898]
[1729314636071,0.756,2646.6,2646.2,3.77898]
[1729314639736,0.756,2646.6,2646.1,4.56631]
[1729314639932,0.756,2646.6,2646.4,3.77865]
[1729314640167,4.5341,2646.9,2646.5,3.77855]
[1729314640366,0.59121822,2646.6,2646.5,3.77855]
[1729314640568,4.5341,2646.9,2646.5,3.77855]
[1729314640932,0.5912201,2646.6,2646.5,3.77855]
[1729314641132,4.5341,2646.9,2646.5,3.77855]
[1729314641336,0.59122052,2646.7,2646.5,3.77849]
[1729314648362,0.59122052,2646.7,2646.6,3.77843]
[1729314648568,0.59122052,2646.7,2646.6,4.59513]
[1729314651667,0.823,2647.3,2647.0,3.77775]
[1729314651863,7.55724,2647.5,2647.2,3.77755]
[1729314651864,4.603,2647.5,2647.2,3.77755]
[1729314652407,0.59110868,2647.3,2647.2,3.77755]
[1729314654473,0.59110868,2647.3,2647.0,3.77786]
[1729314654877,0.59110868,2647.3,2647.0,3.77777]
[1729314655074,0.59110868,2647.3,2646.9,0.8167]
[1729314655075,0.823,2647.2,2646.9,3.778]
[1729314657687,0.823,2647.2,2647.0,3.77778]
[1729314659208,0.823,2647.2,2647.0,7.55556]
[1729314659420,0.59110868,2647.3,2647.1,3.77769]
[1729314659571,0.59110868,2647.3,2647.2,3.77757]
[1729314664027,0.59110868,2647.3,2647.1,3.77771]
[1729314665110,1.37900868,2647.3,2646.9,3.77786]
[1729314665292,1.37900868,2647.3,2647.0,3.7778]
[1729314667317,1.37900868,2647.3,2646.9,7.55578]
[1729314667516,1.37900868,2647.3,2647.0,3.77783]
[1729314667794,1.37900868,2647.3,2646.9,3.77786]
[1729314668097,1.37900868,2647.3,2647.0,3.77782]
[1729314668295,1.37900868,2647.3,2646.8,4.6019]
[1729314668797,1.37900868,2647.3,2646.9,3.77796]
[1729314669137,1.37900868,2647.3,2646.8,3.778]
[1729314669319,1.37900868,2647.3,2646.9,3.77792]
[1729314669920,1.37900868,2647.3,2646.8,3.778]
[1729314670294,1.37900868,2647.3,2646.9,3.77798]
[1729314673613,1.37900868,2647.3,2647.0,3.77785]
[1729314674922,6.05007255,2647.3,2646.8,3.778]
[1729314675232,0.7773,2647.2,2646.8,7.55606]
[1729314675439,0.7773,2647.2,2646.8,3.778]
[1729314676006,0.7773,2647.2,2646.9,3.77799]
[1729314694689,0.7773,2647.2,2646.8,3.778]
[1729314694982,0.7864,2647.1,2646.8,3.778]
[1729314695585,0.7864,2647.1,2646.8,7.55606]
[1729314695989,0.7864,2647.1,2646.9,3.77798]
[1729314704263,1.37750868,2647.3,2646.8,3.778]
[1729314704464,1.37750868,2647.3,2647.0,3.77785]
[1729314715037,1.37750868,2647.3,2646.8,3.77813]
[1729314715332,0.59110868,2647.3,2647.2,3.77757]
[1729314751808,0.59110868,2647.3,2647.2,4.54497]
[1729314752010,0.8261,2648.0,2647.9,3.77657]
[1729314752157,0.59100265,2648.0,2647.9,3.77657]
[1729314752356,0.59100265,2648.0,2647.7,3.77675]
[1729314752662,0.59100265,2648.0,2647.7,3.77679]
[1729314754415,0.59100265,2648.0,2647.5,3.77714]
[1729314754416,1.11032992,2648.0,2647.5,3.77714]
[1729314754591,1.11032992,2648.0,2647.6,3.777]
[1729314754785,0.59100265,2648.0,2647.6,3.777]
[1729314759717,0.77,2647.9,2647.1,0.75]
[1729314760032,0.77,2647.7,2647.3,3.77736]
[1729314760194,0.77,2647.7,2647.1,0.75]
[1729314760195,4.54687,2647.7,2647.1,0.75]
[1729314760390,4.54687,2647.7,2647.2,4.15256]
[1729314761223,0.77,2647.7,2647.3,3.77736]
[1729314769346,0.77,2647.7,2647.4,3.77726]
[1729314771032,0.77,2647.7,2647.5,3.77703]
[1729314773674,0.77,2647.7,2647.5,4.532459]
[1729314773862,0.7979,2647.9,2647.6,3.777]
[1729314776075,0.7979,2647.9,2647.7,3.77678]
[1729314777738,0.59100265,2648.0,2647.8,3.77672]
[1729314779476,0.59100265,2648.0,2647.8,5.350792]
[1729314780919,0.59100265,2648.0,2647.8,4.532092]
[1729314781124,0.59100265,2648.0,2647.8,3.77672]
[1729314787156,0.59100265,2648.0,2647.7,3.77681]
[1729314789742,0.59100265,2648.0,2647.7,3.77686]
[1729314790318,3.77615,2648.2,2647.7,3.77686]
[1729314790650,3.77615,2648.2,2647.8,3.7767]
[1729314791559,4.57395,2648.3,2647.8,3.7767]
[1729314792165,0.7979,2648.3,2647.8,3.7767]
[1729314792371,3.77615,2648.2,2647.8,3.7767]
[1729314793460,0.7979,2648.3,2647.8,3.77663]
[1729314793661,4.57391,2648.3,2647.9,4.154233]
[1729314793862,4.57391,2648.3,2647.9,3.77657]
[1729314794163,4.57391,2648.3,2647.8,7.5534]
[1729314794460,3.77615,2648.2,2647.8,3.7767]
[1729314795185,0.7979,2648.3,2647.8,3.7767]
[1729314795388,4.57396,2648.3,2647.8,3.7767]
[1729314796944,0.7979,2648.3,2647.8,3.7767]
[1729314797144,3.77618,2648.2,2647.8,3.7767]
[1729314797594,0.7593,2648.1,2647.7,3.77686]
[1729314797744,0.7593,2648.1,2647.7,4.6896489]
[1729314798194,4.53559,2648.1,2647.7,4.6896489]
[1729314798491,4.53559,2648.1,2647.7,0.9127889]
[1729314799891,4.53559,2648.1,2647.7,4.6896489]
[1729314800091,0.7593,2648.1,2647.7,4.6896489]
[1729314802146,0.7593,2648.1,2647.8,0.55083489]
[1729314802342,4.58627,2648.3,2647.8,5.08110489]
[1729314802547,8.36238,2648.3,2647.8,4.53027]
[1729314803374,8.36239,2648.3,2647.8,4.53027]
[1729314803692,4.58627,2648.3,2647.8,4.53027]
[1729314803896,8.3624,2648.3,2647.8,4.53027]
[1729314806677,3.77615,2648.2,2647.8,4.53027]
[1729314806866,3.77615,2648.2,2647.8,3.77667]
[1729314807973,3.77614,2648.2,2647.6,4.53046]
[1729314808187,3.77639,2648.1,2647.6,5.361223]
[1729314808593,3.77639,2648.1,2647.6,9.138133]
[1729314808794,3.77639,2648.1,2647.6,5.361223]
[1729314809470,4.58635,2648.2,2647.7,3.77684]
[1729314811371,4.58635,2648.2,2647.7,4.6906463]
[1729314812181,3.77632,2648.1,2647.7,0.9138063]
[1729314812381,3.77632,2648.1,2647.6,4.53046]
[1729314813487,3.77632,2648.1,2647.7,3.77683]
[1729314813687,4.58635,2648.2,2647.7,3.77683]
[1729314815473,4.58635,2648.2,2647.6,4.53046]
[1729314815474,3.77629,2648.1,2647.6,4.53046]
[1729314815676,3.7765,2648.0,2647.6,0.7536]
[1729314816778,7.95010939,2648.5,2647.3,3.77742]
[1729314816779,3.77657,2647.9,2647.3,3.77742]
[1729314816971,3.77697,2647.7,2647.4,0.28223409]
[1729314817175,0.8025,2647.5,2647.1,4.58473]
[1729314817376,0.8025,2647.5,2647.2,0.85977903]